fUST/lending_fUST_20251226
["ID","MTS","AMOUNT","RATE_DAILY","PERIOD"]
[399858578,1766758245878,-151.0,0.000166,2]
[399858580,1766758245888,-151.0,0.000166,2]
[399858582,1766758245897,-151.0,0.000166,2]
[399858584,1766758245907,-151.0,0.000166,2]
[399858586,1766758245916,-151.0,0.000166,2]
[399858589,1766758245926,-512.47419862,0.00016602,2]
[399858591,1766758245936,-254.40352087,0.00016635,2]
[399858593,1766758245946,-1033.58627324,0.00016654,2]
[399858595,1766758245955,-5888.0,0.00016703,2]
[399858597,1766758245965,-429.0,0.00016712,5]
[399858599,1766758245974,-500.0,0.00016712,5]
[399858601,1766758245985,-500.0,0.00016712,5]
[399858603,1766758245994,-500.0,0.00016712,5]
[399858605,1766758246004,-633.0,0.00016726,2]
[399858607,1766758246014,-1363.0,0.00016726,2]
[399858609,1766758246023,-2161.0,0.00016726,2]
[399858611,1766758246033,-300.0,0.00016727,2]
[399858613,1766758246042,-300.0,0.00016727,2]
[399858615,1766758246052,-300.0,0.00016727,2]
[399858617,1766758246061,-300.0,0.00016727,2]
[399858618,1766758246071,-300.0,0.00016727,2]
[399858620,1766758246081,-300.0,0.00016727,2]
[399858623,1766758246091,-300.0,0.00016727,2]
[399858624,1766758246100,-300.0,0.00016727,2]
[399858626,1766758246109,-300.0,0.00016727,2]
[399858628,1766758246119,-300.0,0.00016727,2]
[399858630,1766758246129,-300.0,0.00016727,2]
[399858632,1766758246138,-300.0,0.00016727,2]
[399858634,1766758246148,-300.0,0.00016727,2]
[399858636,1766758246159,-300.0,0.00016727,2]
[399858638,1766758246169,-300.0,0.00016727,2]
[399858640,1766758246179,-600.0,0.00016727,2]
[399858642,1766758246188,-5888.0,0.00016742,2]
[399858644,1766758246198,-329.729636,0.00016742,2]
[399858646,1766758246208,-329.729636,0.00016742,2]
[399858648,1766758246219,-329.729636,0.00016742,2]
[399858650,1766758246229,-329.729636,0.00016742,2]
[399858652,1766758246239,-5888.0,0.00016803,2]
[399858654,1766758246250,-500.0,0.00016823,2]
[399858656,1766758246260,-204.13,0.00016823,2]
[399858658,1766758246269,-702.36,0.00016825,2]
[399858661,1766758246281,-702.36,0.00016825,2]
[399858662,1766758246290,-702.36,0.00016825,2]
[399858665,1766758246300,-702.36,0.00016825,2]
[399858666,1766758246310,-702.36,0.00016825,2]
[399858668,1766758246319,-702.36,0.00016825,2]
[399858670,1766758246329,-702.36,0.00016825,2]
[399858672,1766758246338,-702.36,0.00016825,2]
[399858674,1766758246349,-702.36,0.00016825,2]
[399858677,1766758246358,-702.36,0.00016825,2]
[399858678,1766758246367,-702.36,0.00016825,2]
[399858680,1766758246377,-702.36,0.00016825,2]
[399858682,1766758246386,-702.36,0.00016825,2]
[399858685,1766758246395,-702.36,0.00016825,2]
[399858686,1766758246405,-702.36,0.00016825,2]
[399858688,1766758246414,-702.36,0.00016825,2]
[399858690,1766758246424,-702.36,0.00016825,2]
[399858692,1766758246433,-702.36,0.00016825,2]
[399858694,1766758246443,-702.36,0.00016825,2]
[399858697,1766758246452,-702.36,0.00016825,2]
[399858698,1766758246462,-702.36,0.00016825,2]
[399858700,1766758246471,-702.36,0.00016825,2]
[399858702,1766758246481,-702.36,0.00016825,2]
[399858704,1766758246490,-702.54276687,0.00016825,2]
[399858706,1766758246500,-151.0,0.00016827,2]
[399858709,1766758246511,-514.84070869,0.00016827,2]
[399858711,1766758246521,-187.78006525,0.00016827,2]
[399858713,1766758246530,-429.0,0.00016849,5]
[399858715,1766758246539,-500.0,0.00016849,5]
[399858717,1766758246548,-500.0,0.00016849,5]
[399858719,1766758246558,-500.0,0.00016849,5]
[399858721,1766758246567,-888.0,0.00016869,2]
[399858723,1766758246577,-151.0,0.00016876,2]
[399858724,1766758246586,-151.0,0.00016876,2]
[399858727,1766758246596,-151.0,0.00016876,2]
[399858728,1766758246605,-151.0,0.00016876,2]
[399858731,1766758246615,-151.0,0.00016876,2]
[399858733,1766758246625,-151.0,0.00016876,2]
[399858735,1766758246635,-421.811,0.0001689,2]
[399858737,1766758246645,-775.0,0.000169,2]
[399858739,1766758246654,-4467.90578341,0.00016914,2]
[399858741,1766758246663,-500.0,0.00016926,2]
[399858743,1766758246673,-500.0,0.00016926,2]
[399858745,1766758246683,-500.0,0.00016926,2]
[399858746,1766758246692,-500.0,0.00016926,2]
[399858748,1766758246701,-500.0,0.00016929,2]
[399858750,1766758246711,-500.0,0.00016929,2]
[399858753,1766758246722,-500.0,0.00016929,2]
[399858754,1766758246731,-500.0,0.00016929,2]
[399858757,1766758246741,-500.0,0.00016929,2]
[399858758,1766758246750,-500.0,0.00016929,2]
[399858761,1766758246764,-500.0,0.00016929,2]
[399858762,1766758246773,-152.04514876,0.00016929,2]
[399858764,1766758246782,-500.0,0.00016932,2]
[399858766,1766758246792,-500.0,0.00016932,2]
[399858768,1766758246800,-500.0,0.00016932,2]
[399858770,1766758246809,-500.0,0.00016932,2]
[399858772,1766758246819,-250.84,0.00016932,2]
[399858774,1766758246829,-500.0,0.00016932,2]
[399858776,1766758246838,-500.0,0.00016932,2]
[399858778,1766758246847,-500.0,0.00016932,2]
[399858780,1766758246856,-500.0,0.00016932,2]
[399858782,1766758246866,-500.0,0.00016932,2]
[399858784,1766758246875,-500.0,0.00016932,2]
[399858786,1766758246885,-500.0,0.00016932,2]
[399858788,1766758246894,-500.0,0.00016932,2]
[399858790,1766758246904,-500.0,0.00016932,2]
[399858792,1766758246913,-500.0,0.00016932,2]
[399858794,1766758246923,-500.0,0.00016932,2]
[399858796,1766758246932,-260.43623078,0.00016932,2]
[399858798,1766758246941,-329.729636,0.00016936,2]
[399858800,1766758246952,-329.729636,0.00016936,2]
[399858802,1766758246962,-329.729636,0.00016936,2]
[399858804,1766758246971,-329.729636,0.00016936,2]
[399858806,1766758246981,-10000.0,0.00016936,2]
[399858807,1766758246990,-208.73736759,0.00016971,2]
[399858808,1766758247000,-429.0,0.00016986,5]
[399858809,1766758247009,-500.0,0.00016986,5]
[399858810,1766758247022,-500.0,0.00016986,5]
[399858812,1766758247031,-500.0,0.00016986,5]
[399858814,1766758247041,-5888.0,0.00016989,2]
[399858815,1766758247050,-1002.0,0.00017,2]
[399858817,1766758247060,-3054.1384279,0.00017,30]
[399858819,1766758247070,-1199.92172318,0.00017,2]
[399858821,1766758247080,-363.33923607,0.00017002,2]
[399858823,1766758247090,-251.036,0.00017036,2]
[399858825,1766758247100,-251.993,0.00017036,2]
[399858827,1766758247110,-150.49,0.00017036,2]
[399858829,1766758247119,-150.0,0.00017036,2]
[399858831,1766758247129,-258.753,0.00017036,2]
[399858833,1766758247138,-954.6595283,0.0001707,2]
[399858835,1766758247148,-151.0,0.000171,2]
[399858837,1766758247157,-155.658401,0.000171,2]
[399858839,1766758247167,-151.0,0.000171,2]
[399858841,1766758247177,-151.0,0.000171,2]
[399858843,1766758247187,-151.0,0.000171,2]
[399858845,1766758247197,-295.014215,0.000171,2]
[399858847,1766758247207,-5888.0,0.000171,2]
[399858849,1766758247216,-935.7745438,0.00017122,2]
[399858851,1766758247226,-429.0,0.00017123,5]
[399858853,1766758247236,-500.0,0.00017123,5]
[399858855,1766758247245,-575.50050397,0.00017123,5]
[399858857,1766758247256,-592.19664758,0.00017123,5]
[399858859,1766758247265,-330.30908235,0.00017133,2]
[399858861,1766758247276,-500.0,0.00017166,2]
[399858863,1766758247285,-500.0,0.00017177,2]
[399858865,1766758247295,-174.79,0.00017177,2]
[399858867,1766758247305,-570.43,0.00017177,2]
[399858869,1766758247314,-570.43,0.00017177,2]
[399858871,1766758247325,-570.43,0.00017177,2]
[399858873,1766758247334,-570.43,0.00017177,2]
[399858875,1766758247344,-570.43,0.00017177,2]
[399858877,1766758247353,-570.43,0.00017177,2]
[399858879,1766758247363,-570.43,0.00017177,2]
[399858881,1766758247373,-570.43,0.00017177,2]
[399858883,1766758247383,-570.43,0.00017177,2]
[399858885,1766758247392,-570.43,0.00017177,2]
[399858887,1766758247402,-570.43,0.00017177,2]
[399858890,1766758247412,-570.43,0.00017177,2]
[399858892,1766758247422,-570.43,0.00017177,2]
[399858894,1766758247431,-570.43,0.00017177,2]
[399858895,1766758247441,-570.43,0.00017177,2]
[399858898,1766758247451,-570.43,0.00017177,2]
[399858900,1766758247460,-570.43,0.00017177,2]
[399858902,1766758247470,-570.43,0.00017177,2]
[399858903,1766758247479,-570.43,0.00017177,2]
[399858905,1766758247489,-570.43,0.00017177,2]
[399858907,1766758247499,-570.43,0.00017177,2]
[399858910,1766758247508,-570.43,0.00017177,2]
[399858912,1766758247518,-570.43,0.00017177,2]
[399858913,1766758247528,-570.60511844,0.00017177,2]
[399858916,1766758247538,-174.79,0.00017177,2]
[399858918,1766758247549,-249.01,0.000172,2]
[399858920,1766758247558,-744.66763057,0.00017219,9]
[399858922,1766758247569,-5888.0,0.00017229,2]
[399858924,1766758247578,-429.0,0.0001726,5]
[399858926,1766758247588,-462.74105409,0.0001726,5]
[399858928,1766758247598,-514.7769839,0.00017261,2]
[399858930,1766758247607,-617.23,0.00017277,2]
[399858932,1766758247618,-617.23,0.00017277,2]
[399858934,1766758247628,-617.23,0.00017277,2]
[399858936,1766758247640,-617.23,0.00017277,2]
[399858938,1766758247649,-617.23,0.00017277,2]
[399858940,1766758247659,-617.23,0.00017277,2]
[399858942,1766758247669,-617.23,0.00017277,2]
[399858944,1766758247678,-617.23,0.00017277,2]
[399858946,1766758247689,-617.23,0.00017277,2]
[399858948,1766758247699,-617.23,0.00017277,2]
[399858950,1766758247708,-617.23,0.00017277,2]
[399858952,1766758247717,-617.23,0.00017277,2]
[399858954,1766758247728,-617.23,0.00017277,2]
[399858956,1766758247737,-617.23,0.00017277,2]
[399858958,1766758247747,-617.23,0.00017277,2]
[399858960,1766758247757,-617.23,0.00017277,2]
[399858962,1766758247772,-617.23,0.00017277,2]
[399858964,1766758247781,-617.23,0.00017277,2]
[399858966,1766758247791,-617.23,0.00017277,2]
[399858968,1766758247800,-617.23,0.00017277,2]
[399858970,1766758247811,-617.23,0.00017277,2]
[399858972,1766758247820,-617.23,0.00017277,2]
[399858974,1766758247830,-617.23,0.00017277,2]
[399858976,1766758247840,-617.37087014,0.00017277,2]
[399858978,1766758247849,-329.729636,0.00017277,2]
[399858980,1766758247859,-329.729636,0.00017277,2]
[399858982,1766758247868,-329.729636,0.00017277,2]
[399858984,1766758247878,-329.729631,0.00017277,2]
[399858986,1766758247888,-1004.0,0.000173,3]
[399858988,1766758247898,-600.0,0.00017311,7]
[399858990,1766758247908,-500.0,0.00017368,2]
[399858993,1766758247918,-154.51578537,0.00017375,2]
[399858995,1766758247928,-533.88981491,0.00017375,2]
[399858997,1766758247938,-194.72792766,0.00017375,2]
[399858999,1766758247948,-500.0,0.00017384,2]
[399859001,1766758247957,-500.0,0.00017385,2]
[399859003,1766758247966,-500.0,0.00017385,2]
[399859004,1766758247975,-957.44,0.00017387,3]
[399859006,1766758247985,-478.72,0.00017387,3]
[399859009,1766758247995,-188.54197105,0.00017387,2]
[399859011,1766758248004,-5888.0,0.00017387,2]
[399859012,1766758248013,-429.0,0.00017397,5]
[399859015,1766758248024,-151.0,0.00017397,2]
[399859017,1766758248035,-151.0,0.00017397,2]
[399859019,1766758248046,-151.0,0.00017397,2]
[399859021,1766758248056,-233.526649,0.00017397,2]
[399859023,1766758248067,-294.65952444,0.00017397,30]
[399859025,1766758248076,-213.0133334,0.00017419,2]
[399859027,1766758248086,-1003.3800133,0.00017452,2]
[399859029,1766758248098,-1914.9,0.00017459,3]
[399859031,1766758248108,-353.22131612,0.00017468,2]
[399859033,1766758248117,-3829.78,0.00017469,3]
[399859036,1766758248128,-294.65952444,0.00017479,30]
[399859038,1766758248138,-208.7995238,0.00017482,2]
[399859040,1766758248147,-526.92,0.00017487,2]
[399859042,1766758248158,-500.0,0.00017487,2]
[399859044,1766758248168,-5888.0,0.00017516,2]
[399859046,1766758248177,-744.66763057,0.00017524,10]
[399859048,1766758248187,-429.0,0.00017534,5]
[399859050,1766758248197,-294.65952444,0.00017562,30]
[399859052,1766758248206,-526.92,0.00017572,2]
[399859054,1766758248215,-499.93856125,0.00017572,2]
[399859056,1766758248226,-500.0,0.00017573,2]
[399859058,1766758248236,-500.0,0.00017573,2]
[399859060,1766758248245,-2616.22,0.00017573,2]
[399859062,1766758248256,-2616.22,0.00017573,2]
[399859064,1766758248266,-829.05,0.00017573,2]
[399859066,1766758248275,-829.05,0.00017573,2]
[399859068,1766758248285,-2623.75,0.00017573,2]
[399859070,1766758248295,-2623.75,0.00017573,2]
[399859072,1766758248305,-526.92,0.0001758,2]
[399859074,1766758248314,-526.92,0.0001758,2]
[399859076,1766758248324,-500.0,0.00017581,2]
[399859078,1766758248334,-500.0,0.00017581,2]
[399859080,1766758248344,-505.48603149,0.00017581,2]
[399859082,1766758248354,-500.0,0.00017581,2]
[399859084,1766758248363,-500.0,0.00017581,2]
[399859086,1766758248373,-526.92,0.00017581,2]
[399859089,1766758248383,-500.0,0.00017581,2]
[399859090,1766758248393,-500.0,0.00017581,2]
[399859092,1766758248402,-500.0,0.00017581,2]
[399859095,1766758248412,-732.02,0.00017581,2]
[399859097,1766758248421,-500.0,0.00017581,2]
[399859098,1766758248431,-500.0,0.00017581,2]
[399859100,1766758248442,-500.0,0.00017582,2]
[399859103,1766758248452,-500.0,0.00017582,2]
[399859104,1766758248462,-500.0,0.00017582,2]
[399859106,1766758248472,-500.0,0.00017582,2]
[399859108,1766758248481,-512.96291608,0.00017582,2]
[399859111,1766758248491,-500.0,0.00017582,2]
[399859112,1766758248500,-500.0,0.00017582,2]
[399859115,1766758248510,-732.02,0.00017582,2]
[399859117,1766758248520,-500.0,0.00017582,2]
[399859118,1766758248529,-500.0,0.00017582,2]
[399859121,1766758248538,-500.0,0.00017583,2]
[399859123,1766758248548,-2616.22,0.00017583,2]
[399859124,1766758248558,-829.05,0.00017583,2]
[399859126,1766758248568,-500.0,0.00017583,2]
[399859129,1766758248578,-500.0,0.00017583,2]
[399859131,1766758248587,-500.0,0.00017583,2]
[399859132,1766758248597,-500.0,0.00017583,2]
[399859134,1766758248606,-500.0,0.00017583,2]
[399859136,1766758248616,-500.0,0.00017583,2]
[399859138,1766758248625,-500.0,0.00017583,2]
[399859140,1766758248635,-642.45370346,0.00017583,2]
[399859142,1766758248645,-2623.75,0.00017583,2]
[399859144,1766758248654,-500.0,0.00017583,2]
[399859146,1766758248663,-500.0,0.00017583,2]
[399859148,1766758248674,-500.0,0.00017583,2]
[399859150,1766758248684,-500.0,0.00017583,2]
[399859153,1766758248694,-500.0,0.00017583,2]
[399859154,1766758248704,-500.0,0.00017583,2]
[399859156,1766758248714,-500.0,0.00017583,2]
[399859159,1766758248724,-500.0,0.00017583,2]
[399859161,1766758248734,-526.92,0.00017583,2]
[399859162,1766758248744,-526.92,0.00017583,2]
[399859164,1766758248753,-526.92,0.00017583,2]
[399859166,1766758248765,-526.92,0.00017583,2]
[399859168,1766758248775,-526.92,0.00017583,2]
[399859170,1766758248784,-526.92,0.00017583,2]
[399859172,1766758248794,-526.92,0.00017583,2]
[399859174,1766758248803,-526.92,0.00017583,2]
[399859176,1766758248813,-526.92,0.00017583,2]
[399859178,1766758248823,-526.92,0.00017583,2]
[399859180,1766758248832,-227.59538117,0.00017583,2]
[399859182,1766758248842,-537.90978086,0.00017583,2]
[399859184,1766758248851,-732.02,0.00017583,2]
[399859186,1766758248861,-732.02,0.00017583,2]
[399859188,1766758248871,-732.02,0.00017583,2]
[399859190,1766758248881,-732.02,0.00017583,2]
[399859192,1766758248890,-500.0,0.00017583,2]
[399859195,1766758248900,-500.0,0.00017583,2]
[399859197,1766758248910,-500.0,0.00017583,2]
[399859198,1766758248919,-500.0,0.00017583,2]
[399859200,1766758248928,-500.0,0.00017583,2]
[399859202,1766758248938,-500.0,0.00017583,2]
[399859205,1766758248948,-500.0,0.00017583,2]
[399859206,1766758248957,-500.0,0.00017583,2]
[399859209,1766758248967,-841.4579163,0.00017584,2]
[399859210,1766758248977,-500.0,0.00017584,2]
[399859212,1766758248986,-633.17749995,0.00017584,2]
[399859214,1766758248996,-2616.22,0.00017584,2]
[399859216,1766758249006,-2616.22,0.00017584,2]
[399859218,1766758249017,-2616.22,0.00017584,2]
[399859220,1766758249027,-2616.22,0.00017584,2]
[399859222,1766758249036,-2616.22,0.00017584,2]
[399859224,1766758249045,-2616.22,0.00017584,2]
[399859226,1766758249055,-2616.22,0.00017584,2]
[399859228,1766758249065,-2616.22,0.00017584,2]
[399859230,1766758249076,-2616.22,0.00017584,2]
[399859232,1766758249085,-2616.22,0.00017584,2]
[399859234,1766758249095,-2616.22,0.00017584,2]
[399859236,1766758249105,-2616.22,0.00017584,2]
[399859238,1766758249115,-2616.22,0.00017584,2]
[399859240,1766758249126,-2616.22,0.00017584,2]
[399859242,1766758249136,-2616.22,0.00017584,2]
[399859244,1766758249146,-2616.22,0.00017584,2]
[399859246,1766758249157,-2616.22,0.00017584,2]
[399859248,1766758249167,-2616.22,0.00017584,2]
[399859250,1766758249177,-2616.22,0.00017584,2]
[399859252,1766758249186,-2616.22,0.00017584,2]
[399859253,1766758249195,-2616.43540277,0.00017584,2]
[399859255,1766758249205,-500.0,0.00017584,2]
[399859257,1766758249214,-500.0,0.00017584,2]
[399859259,1766758249224,-500.0,0.00017584,2]
[399859261,1766758249234,-500.0,0.00017584,2]
[399859263,1766758249244,-504.67406641,0.00017584,2]
[399859265,1766758249253,-2371.13,0.00017584,2]
[399859267,1766758249263,-2371.13,0.00017584,2]
[399859269,1766758249272,-2371.13,0.00017584,2]
[399859271,1766758249282,-2371.13,0.00017584,2]
[399859273,1766758249293,-2371.13,0.00017584,2]
[399859275,1766758249303,-2371.13,0.00017584,2]
[399859277,1766758249312,-2371.13,0.00017584,2]
[399859279,1766758249322,-2371.13,0.00017584,2]
[399859281,1766758249331,-2371.13,0.00017584,2]
[399859282,1766758249340,-2371.13,0.00017584,2]
[399859284,1766758249350,-2371.13,0.00017584,2]
[399859286,1766758249360,-2371.13,0.00017584,2]
[399859288,1766758249369,-2371.13,0.00017584,2]
[399859290,1766758249379,-2371.13,0.00017584,2]
[399859292,1766758249388,-2371.13,0.00017584,2]
[399859294,1766758249397,-2371.13,0.00017584,2]
[399859296,1766758249406,-2371.13,0.00017584,2]
[399859298,1766758249415,-2371.13,0.00017584,2]
[399859300,1766758249425,-2371.13,0.00017584,2]
[399859302,1766758249433,-2371.13,0.00017584,2]
[399859303,1766758249442,-2371.13,0.00017584,2]
[399859305,1766758249452,-2371.13,0.00017584,2]
[399859307,1766758249461,-2371.13,0.00017584,2]
[399859309,1766758249471,-2371.28578997,0.00017584,2]
[399859311,1766758249481,-829.05,0.00017584,2]
[399859313,1766758249491,-829.05,0.00017584,2]
[399859315,1766758249500,-829.05,0.00017584,2]
[399859317,1766758249510,-829.05,0.00017584,2]
[399859319,1766758249519,-829.05,0.00017584,2]
[399859321,1766758249529,-829.05,0.00017584,2]
[399859323,1766758249538,-829.05,0.00017584,2]
[399859325,1766758249548,-829.05,0.00017584,2]
[399859327,1766758249559,-829.05,0.00017584,2]
[399859329,1766758249568,-829.05,0.00017584,2]
[399859331,1766758249578,-829.05,0.00017584,2]
[399859333,1766758249587,-829.05,0.00017584,2]
[399859335,1766758249597,-829.05,0.00017584,2]
[399859352,1766758249749,-829.05,0.00017584,2]
[399859354,1766758249783,-829.05,0.00017584,2]
[399859356,1766758249793,-829.05,0.00017584,2]
[399859358,1766758249803,-829.05,0.00017584,2]
[399859360,1766758249812,-829.05,0.00017584,2]
[399859362,1766758249821,-829.05,0.00017584,2]
[399859364,1766758249830,-829.05,0.00017584,2]
[399859366,1766758249843,-829.07669871,0.00017584,2]
[399859368,1766758249852,-2623.75,0.00017584,2]
[399859370,1766758249863,-2623.75,0.00017584,2]
[399859372,1766758249872,-2623.75,0.00017584,2]
[399859374,1766758249881,-2623.75,0.00017584,2]
[399859376,1766758249891,-2623.75,0.00017584,2]
[399859378,1766758249900,-2623.75,0.00017584,2]
[399859380,1766758249911,-2623.75,0.00017584,2]
[399859381,1766758249920,-2623.75,0.00017584,2]
[399859383,1766758249930,-2623.75,0.00017584,2]
[399859385,1766758249939,-2623.75,0.00017584,2]
[399859387,1766758249949,-2623.75,0.00017584,2]
[399859389,1766758249959,-2623.75,0.00017584,2]
[399859391,1766758249968,-2623.75,0.00017584,2]
[399859393,1766758249979,-1145.4597804,0.00017584,2]
[399859396,1766758249995,-411.51517223,0.00017584,2]
[399859748,1766758263343,500.0,0.00013273,2]
[399859749,1766758266262,510.07885652,0.00013273,2]
[399859750,1766758266321,500.0,0.00013273,2]
[399859751,1766758266620,500.0,0.00013273,2]
[399859752,1766758268030,500.0,0.00013273,2]
[399859753,1766758268064,500.0,0.00013273,2]
[399859754,1766758278081,500.0,0.00013273,2]
[399859755,1766758280387,500.0,0.00013273,2]
[399859756,1766758280974,500.0,0.00013273,2]
[399859757,1766758281314,500.0,0.00013273,2]
[399859758,1766758281696,500.0,0.00013273,2]
[399859759,1766758281808,214.90572917,0.00013273,2]
[399859760,1766758282357,501.65776924,0.00013273,2]
[399859761,1766758282645,500.0,0.00013273,2]
[399859762,1766758282756,500.0,0.00013273,2]
[399859763,1766758282865,500.0,0.00013273,2]
[399859764,1766758307945,532.36230103,0.0003,120]
[399859765,1766758308751,150.0,5.675e-05,2]
[399859766,1766758309178,150.0,5.945e-05,2]
[399859767,1766758309687,150.0,6.215e-05,2]
[399859768,1766758310083,150.0,6.486e-05,2]
[399859769,1766758310644,150.0,6.756e-05,2]
[399859770,1766758311039,150.0,7.026e-05,2]
[399859771,1766758311553,154.75,7.296e-05,2]
[399859772,1766758311965,176.85,7.566e-05,2]
[399859773,1766758312375,198.96,7.837e-05,2]
[399859774,1766758313062,221.07,8.107e-05,2]
[399859775,1766758325705,500.0,0.00013273,2]
[399859776,1766758333454,-501.46,0.000151,2]
[399859777,1766758333618,500.0,0.00013273,2]
[399859778,1766758335268,500.0,0.00013273,2]
[399859779,1766758335859,500.0,0.00013273,2]
[399859780,1766758336416,500.0,0.00013273,2]
[399859781,1766758380899,172.68778502,7.961e-05,2]
[399859782,1766758381548,172.68778502,0.00013747,2]
[399859783,1766758384568,500.0,0.00013273,2]
[399859784,1766758385069,-411.5996904,0.00015163,7]
[399859785,1766758409808,170.38,0.0001,2]
[399859786,1766758444251,500.0,0.00013273,2]
[399859787,1766758446029,500.0,0.00013273,2]
[399859788,1766758446152,500.0,0.00013273,2]
[399859789,1766758501710,-172.950003,0.0001514,2]
[399859790,1766758504292,500.0,0.00013273,2]
[399859791,1766758505978,500.0,0.00013699,2]
[399859792,1766758535122,-2145.0,0.000156,2]
[399859793,1766758535161,-1703.0245051,0.00015642,2]
[399859794,1766758541319,-2303.9609898,0.00015642,2]
[399859795,1766758541354,-300.0,0.00015799,2]
[399859796,1766758541388,-300.0,0.00015799,2]
[399859797,1766758541426,-300.0,0.00015799,2]
[399859798,1766758541460,-300.0,0.00015799,2]
[399859799,1766758541495,-625.0,0.00015799,2]
[399859800,1766758544098,-5000.0,0.000158,2]
[399859801,1766758625060,500.0,0.00013273,2]
[399859802,1766758680094,218.53604284,0.00013227,2]
[399859803,1766758683342,500.0,0.00013273,2]
[399859804,1766758728452,300.0,0.0003013,120]
[399859805,1766758864265,541.08539316,0.00013273,2]
[399859806,1766758865512,500.0,0.00013273,2]
[399859807,1766758956216,160.0,0.000301,120]
[399859808,1766758957241,160.0,0.000301,120]
[399859809,1766758982960,160.0,0.000301,120]
[399859810,1766758984275,500.0,0.00013273,2]
[399859811,1766759123386,-162.0,0.000156,2]
[399859812,1766759151275,166.66666666,0.00026874,120]
[399859813,1766759164686,225.45909546,0.000152,2]
[399859814,1766759170140,-300.0,0.00015686,2]
[399859815,1766759170175,-475.0,0.00015687,2]
[399859816,1766759170210,-475.0,0.00015687,2]
[399859817,1766759170243,-475.0,0.00015687,2]
[399859818,1766759170277,-475.0,0.00015687,2]
[399859819,1766759170317,-475.0,0.00015687,2]
[399859820,1766759170351,-300.0,0.0001575,2]
[399859821,1766759170387,-300.0,0.0001575,2]
[399859822,1766759170421,-1108.0,0.00015788,2]
[399859823,1766759170669,-307.30160818,0.000158,2]
[399859824,1766759175995,-649.0,0.000158,2]
[399859825,1766759176030,-4000.0,0.000158,2]
[399859826,1766759182066,-2000.0,0.00015845,2]
[399859829,1766759295645,500.0,0.00013273,2]
[399859830,1766759295681,500.0,0.00013273,2]
[399859831,1766759295713,550.0,0.00013821,2]
[399859832,1766759295749,500.0,0.00013821,2]
[399859833,1766759295972,500.0,0.00013273,2]
[399859834,1766759307982,-571.38791575,0.00015845,2]
[399859835,1766759308020,-1028.49824836,0.00015845,2]
[399859836,1766759308055,-300.0,0.00015861,2]
[399859837,1766759310877,-1539.36209625,0.00015862,2]
[399859839,1766759313951,-3078.7241925,0.00015862,2]
[399859840,1766759316954,-3842.561615,0.00015862,2]
[399859841,1766759316992,-301.15557601,0.00015881,2]
[399859842,1766759317024,-165.76046166,0.000159,2]
[399859843,1766759336967,-2025.84481301,0.000154,2]
[399859844,1766759336997,-10000.01,0.000154,2]
[399859845,1766759337086,-10000.01,0.000154,2]